Department Family,Entity,Date,Expense Type,Expense area,Supplier,Transaction Number,Amount in Sterling �s incl VAT ,Supplier VAT Registration number
NHS,Glos Hospitals NHS Foundation Trust,04/04/2023,Finished processed goods,Inventories,Alloga UK Limited,000500-106,"45,000.00", 
NHS,Glos Hospitals NHS Foundation Trust,04/04/2023,Finished processed goods,Inventories,Bayer,000500-81,"48,816.40", 
NHS,Glos Hospitals NHS Foundation Trust,04/04/2023,Finished processed goods,Inventories,Roche Products Limited,000500-84,"63,672.48", 
NHS,Glos Hospitals NHS Foundation Trust,04/04/2023,Finished processed goods,Inventories,Alliance Healthcare,000501-193,"33,729.90", 
NHS,Glos Hospitals NHS Foundation Trust,04/04/2023,Finished processed goods,Inventories,Roche Products Limited,000501-85,"73,320.00", 
NHS,Glos Hospitals NHS Foundation Trust,04/04/2023,Finished processed goods,Inventories,Bayer,000502-7,"45,622.80", 
NHS,Glos Hospitals NHS Foundation Trust,12/04/2023,Finished processed goods,Inventories,Roche Products Limited,000503-102,"109,200.00", 
NHS,Glos Hospitals NHS Foundation Trust,12/04/2023,Finished processed goods,Inventories,CSL Behring UK Limited,000504-210,"56,990.00", 
NHS,Glos Hospitals NHS Foundation Trust,12/04/2023,Finished processed goods,Inventories,Octapharma Limited,000504-916,"39,675.00", 
NHS,Glos Hospitals NHS Foundation Trust,12/04/2023,Finished processed goods,Inventories,CSL Behring UK Limited,000505-12,"75,511.75", 
NHS,Glos Hospitals NHS Foundation Trust,12/04/2023,Finished processed goods,Inventories,Bayer,000506-2,"50,185.08", 
NHS,Glos Hospitals NHS Foundation Trust,12/04/2023,Finished processed goods,Inventories,Qualasept Ltd t/a Bath ASU,000506-241,"54,867.84", 
NHS,Glos Hospitals NHS Foundation Trust,12/04/2023,Finished processed goods,Inventories,Roche Products Limited,000506-73,"78,510.91", 
NHS,Glos Hospitals NHS Foundation Trust,12/04/2023,Finished processed goods,Inventories,Aah Pharmaceuticals Limited,000506-95,"29,386.80", 
NHS,Glos Hospitals NHS Foundation Trust,25/04/2023,Finished processed goods,Inventories,Bayer,000511-385,"49,272.62", 
NHS,Glos Hospitals NHS Foundation Trust,25/04/2023,Finished processed goods,Inventories,Roche Products Limited,000511-387,"32,760.00", 
NHS,Glos Hospitals NHS Foundation Trust,25/04/2023,Finished processed goods,Inventories,Bayer,000511-40,"45,622.80", 
NHS,Glos Hospitals NHS Foundation Trust,25/04/2023,Finished processed goods,Inventories,Bristol Myers Squibb Pharmaceuticals Limited,000511-42,"33,264.00", 
NHS,Glos Hospitals NHS Foundation Trust,25/04/2023,Finished processed goods,Inventories,Aah Pharmaceuticals Limited,000513-39,"31,297.32", 
NHS,Glos Hospitals NHS Foundation Trust,25/04/2023,Finished processed goods,Inventories,Roche Products Limited,000514-124,"34,446.96", 
NHS,Glos Hospitals NHS Foundation Trust,25/04/2023,Finished processed goods,Inventories,Roche Products Limited,000514-125,"29,491.01", 
NHS,Glos Hospitals NHS Foundation Trust,25/04/2023,Finished processed goods,Inventories,Roche Products Limited,000514-128,"32,760.00", 
NHS,Glos Hospitals NHS Foundation Trust,25/04/2023,Finished processed goods,Inventories,Roche Products Limited,000514-129,"73,320.00", 
NHS,Glos Hospitals NHS Foundation Trust,25/04/2023,Finished processed goods,Inventories,Alloga UK Limited,000514-257,"27,131.04", 
NHS,Glos Hospitals NHS Foundation Trust,25/04/2023,Finished processed goods,Inventories,Alloga UK Limited,000514-261,"46,800.00", 
NHS,Glos Hospitals NHS Foundation Trust,25/04/2023,Finished processed goods,Inventories,Qualasept Ltd t/a Bath ASU,000514-275,"27,883.92", 
NHS,Glos Hospitals NHS Foundation Trust,25/04/2023,Finished processed goods,Inventories,Qualasept Ltd t/a Bath ASU,000514-278,"55,317.84", 
NHS,Glos Hospitals NHS Foundation Trust,25/04/2023,Finished processed goods,Inventories,Qualasept Ltd t/a Bath ASU,000514-279,"34,528.68", 
NHS,Glos Hospitals NHS Foundation Trust,25/04/2023,Finished processed goods,Inventories,Qualasept Ltd t/a Bath ASU,000514-283,"51,793.02", 
NHS,Glos Hospitals NHS Foundation Trust,25/04/2023,Finished processed goods,Inventories,Qualasept Ltd t/a Bath ASU,000514-284,"30,672.31", 
NHS,Glos Hospitals NHS Foundation Trust,25/04/2023,Finished processed goods,Inventories,Roche Products Limited,000515-556,"57,263.88", 
NHS,Glos Hospitals NHS Foundation Trust,25/04/2023,Finished processed goods,Inventories,Alloga UK Limited,000515-567,"46,836.14", 
NHS,Glos Hospitals NHS Foundation Trust,21/04/2023,Registered Nurse - Band 8a,Site Management,NHS Pensions,955031,"-76,895.53", 
NHS,Glos Hospitals NHS Foundation Trust,04/04/2023,Drugs - Passthrough Expenditure,Hereford Clinic Rental,HA95059 Wye Valley NHS Trust,955296,"477,300.87", 
NHS,Glos Hospitals NHS Foundation Trust,04/04/2023,Drugs - Passthrough Expenditure,Hereford Clinic Rental,HA95059 Wye Valley NHS Trust,955297,"438,437.19", 
NHS,Glos Hospitals NHS Foundation Trust,12/04/2023,Training Expenses,Overseas Recruitment,Oxford Brookes University,955444,"28,584.00", 
NHS,Glos Hospitals NHS Foundation Trust,18/04/2023,Computer Maintenance,Computing - CGH HQ,Daisy Corporate Services Trading Ltd,957735,"166,317.70", 
NHS,Glos Hospitals NHS Foundation Trust,25/04/2023,Computer Software / License  Fees,Clinical Systems,QBS Software Limited,958245,"38,520.00", 
NHS,Glos Hospitals NHS Foundation Trust,12/04/2023,Implant Procedures,Cardiology Laboratory,Medtronic Limited,959303,"51,840.00", 
NHS,Glos Hospitals NHS Foundation Trust,04/04/2023,Drugs - Passthrough Expenditure,Hereford Clinic Rental,HA95059 Wye Valley NHS Trust,959331,"-52,086.05", 
NHS,Glos Hospitals NHS Foundation Trust,04/04/2023,Regular recharges,Scheduled Recharges from NPX,Gloucestershire Health and Care NHS FT Pr GCS,959381,"103,747.89", 
NHS,Glos Hospitals NHS Foundation Trust,04/04/2023,Regular recharges,Scheduled Recharges from NPX,Gloucestershire Health and Care NHS FT Pr GCS,959383,"100,614.19", 
NHS,Glos Hospitals NHS Foundation Trust,04/04/2023,Regular recharges,Scheduled Recharges from NPX,Gloucestershire Health and Care NHS FT Pr GCS,960564,"81,472.53", 
NHS,Glos Hospitals NHS Foundation Trust,04/04/2023,Purchase Computers/Systems,Capital Project Control,Philips Electronics UK Limited,960586,"275,245.54", 
NHS,Glos Hospitals NHS Foundation Trust,04/04/2023,Computer Maintenance,IT Contracts Shared Service,Insight Direct (UK) Limited,960629,"25,353.46", 
NHS,Glos Hospitals NHS Foundation Trust,04/04/2023,External Contracts : Other,Radiography,HA90825 Uni Hosp Bristol Weston Found Trust,960926,"44,762.58", 
NHS,Glos Hospitals NHS Foundation Trust,04/04/2023,External Contracts : Other,Radiography,HA90825 Uni Hosp Bristol Weston Found Trust,960927,"40,508.54", 
NHS,Glos Hospitals NHS Foundation Trust,04/04/2023,External Contracts : Other,Radiography,HA90825 Uni Hosp Bristol Weston Found Trust,960928,"45,615.79", 
NHS,Glos Hospitals NHS Foundation Trust,04/04/2023,External Contracts : Other,Radiography,HA90825 Uni Hosp Bristol Weston Found Trust,960929,"42,123.91", 
NHS,Glos Hospitals NHS Foundation Trust,04/04/2023,External Contracts : Other,Radiography,HA90825 Uni Hosp Bristol Weston Found Trust,960930,"39,822.00", 
NHS,Glos Hospitals NHS Foundation Trust,04/04/2023,Prescribing Control,Payables - Manual,HA79125 NHSBSA,960966,"119,458.91", 
NHS,Glos Hospitals NHS Foundation Trust,04/04/2023,Audit Fees : Statutory,Financial Services,Deloitte and Touche LLP,960977,"46,500.00", 
NHS,Glos Hospitals NHS Foundation Trust,04/04/2023,Consultant Secondment,Consultants - Dermatology,HA91729 North Bristol NHS Trust,961023,"46,141.75", 
NHS,Glos Hospitals NHS Foundation Trust,04/04/2023,Purchase Computers/Systems,Capital Project Control,Leica Microsystems (Uk) Limited,961096,"26,542.45", 
NHS,Glos Hospitals NHS Foundation Trust,04/04/2023,Building - External Contracts,Capital Project Control,exi Project Management South Limited,961345,"171,658.37", 
NHS,Glos Hospitals NHS Foundation Trust,04/04/2023,Computer Software / License  Fees,Smartcare,InterSystems,961416,"61,668.53", 
NHS,Glos Hospitals NHS Foundation Trust,04/04/2023,Computer Software / License  Fees,Smartcare,InterSystems,961417,"80,016.16", 
NHS,Glos Hospitals NHS Foundation Trust,04/04/2023,Laboratory External Tests,Consultants - Dermatology,HA91729 North Bristol NHS Trust,961559,"36,067.32", 
NHS,Glos Hospitals NHS Foundation Trust,04/04/2023,Non - Healthcare - NHS Trusts,Hereford LINAC,HA95059 Wye Valley NHS Trust,961571,"33,931.13", 
NHS,Glos Hospitals NHS Foundation Trust,04/04/2023,Contract : Other External,GHP Contract,Gloucester Healthcare Partnership Limited,961602,"645,707.41", 
NHS,Glos Hospitals NHS Foundation Trust,04/04/2023,Contract : Other External,GHP Contract,Gloucester Healthcare Partnership Limited,961603,"27,774.06", 
NHS,Glos Hospitals NHS Foundation Trust,12/04/2023,Medical & Surgical Equipment Maintenance Contracts,Radiography,Supply Chain Coordination Ltd - Maint. (201),961607,"86,276.95", 
NHS,Glos Hospitals NHS Foundation Trust,04/04/2023,Laboratory External Tests,Consultants - Dermatology,HA91729 North Bristol NHS Trust,961630,"52,283.00", 
NHS,Glos Hospitals NHS Foundation Trust,04/04/2023,Allocate,Payables - Manual,GDN Recruitment t/a National Locums,961654,"27,112.71", 
NHS,Glos Hospitals NHS Foundation Trust,04/04/2023,Colour Connection,Payables - Manual,Colour Connection,961781,"29,954.60", 
NHS,Glos Hospitals NHS Foundation Trust,04/04/2023,Rent,Clinical Academy - Undergraduate Management,Markey Student Property Ltd,961807,"150,536.72", 
NHS,Glos Hospitals NHS Foundation Trust,04/04/2023,Rent,Clinical Academy - Undergraduate Management,Markey Student Property Ltd,961808,"65,029.44", 
NHS,Glos Hospitals NHS Foundation Trust,04/04/2023,X-Ray Equipment : Maintenance,Radiotherapy - Radiography,Elekta Ltd,961810,"60,422.58", 
NHS,Glos Hospitals NHS Foundation Trust,18/04/2023,Medical & Surgical Equipment Maintenance Contracts,Endoscopy CGH,Supply Chain Coordination Ltd - Maint. (201),961813,"85,431.78", 
NHS,Glos Hospitals NHS Foundation Trust,12/04/2023,External Contracts : Other,IT Contracts Shared Service,Netcall Technology Limited,961818,"48,655.20", 
NHS,Glos Hospitals NHS Foundation Trust,18/04/2023,Medical & Surgical Equipment Maintenance Contracts,Endoscopy CGH,Supply Chain Coordination Ltd - Maint. (201),961842,"51,368.44", 
NHS,Glos Hospitals NHS Foundation Trust,12/04/2023,Medical & Surgical Equipment Maintenance Contracts,Endoscopy GRH,Supply Chain Coordination Ltd - Maint. (201),961844,"292,878.49", 
NHS,Glos Hospitals NHS Foundation Trust,12/04/2023,Medical & Surgical Equipment Maintenance Contracts,Radiotherapy - Radiography,Supply Chain Coordination Ltd - Maint. (201),961847,"43,786.26", 
NHS,Glos Hospitals NHS Foundation Trust,04/04/2023,Medical & Surgical Equipment Maintenance Contracts,Breast Specialty,Supply Chain Coordination Ltd - Maint. (201),961887,"27,209.44", 
NHS,Glos Hospitals NHS Foundation Trust,04/04/2023,Rates,GRH properties,Gloucester City Council,961895,"214,528.00", 
NHS,Glos Hospitals NHS Foundation Trust,04/04/2023,Rates,CGH properties,Cheltenham Borough Council,961900,"102,912.00", 
NHS,Glos Hospitals NHS Foundation Trust,12/04/2023,Purchase Computers/Systems,Capital Project Control,Keystream Healthcare,961916,"37,296.00", 
NHS,Glos Hospitals NHS Foundation Trust,12/04/2023,Contract : Other External,UC & Dividend,NHS Gloucestershire Managed Services,961975,"1,822,614.88", 
NHS,Glos Hospitals NHS Foundation Trust,12/04/2023,Contract : Other External,SubCo Stores Recharges,NHS Gloucestershire Managed Services,961976,"4,663,122.70", 
NHS,Glos Hospitals NHS Foundation Trust,04/04/2023,Contractual Clinical Services,Urology Specialty,Shire Surgical Limited,962022,"44,750.00", 
NHS,Glos Hospitals NHS Foundation Trust,12/04/2023,Consultant Secondment,Radiography Consultants,HA91729 North Bristol NHS Trust,962096,"61,225.00", 
NHS,Glos Hospitals NHS Foundation Trust,12/04/2023,Medical & Surgical Equipment Maintenance Contracts,ENT OPD,Supply Chain Coordination Ltd - Maint. (201),962415,"33,126.00", 
NHS,Glos Hospitals NHS Foundation Trust,12/04/2023,Allocate,Payables - Manual,ID Medical Group Limited,962577,"25,596.00", 
NHS,Glos Hospitals NHS Foundation Trust,12/04/2023,Pay - Agency Prof & Technical,Capital Project Control,Roc Search Limited,962688,"25,987.50", 
NHS,Glos Hospitals NHS Foundation Trust,12/04/2023,Advertising & Staff Recruitment,HR Medical Staffing,BMJ Publishing Group Ltd,962954,"53,935.20", 
NHS,Glos Hospitals NHS Foundation Trust,12/04/2023,X-Ray Equipment : Maintenance,Radiography,Supply Chain Coordination Ltd - Maint. (201),963022,"50,560.80", 
NHS,Glos Hospitals NHS Foundation Trust,12/04/2023,X-Ray Equipment : Maintenance,Radiography,Supply Chain Coordination Ltd - Maint. (201),963023,"52,504.37", 
NHS,Glos Hospitals NHS Foundation Trust,18/04/2023,Contractual Clinical Services,Renal Dialysis,B Braun Avitum UK Limited,963165,"201,214.48", 
NHS,Glos Hospitals NHS Foundation Trust,18/04/2023,Other Transport Costs,Patient Transport Services GHX,E-Zec Medical Transport Services Ltd,963255,"31,222.90", 
NHS,Glos Hospitals NHS Foundation Trust,18/04/2023,Other Transport Costs,Patient Transport Services GHX,E-Zec Medical Transport Services Ltd,963256,"31,356.57", 
NHS,Glos Hospitals NHS Foundation Trust,13/04/2023,Barclay Card,Payables - Manual,Barclaycard Commercial,963346,"26,374.28", 
NHS,Glos Hospitals NHS Foundation Trust,18/04/2023,Laboratory Reagents,Microbiology - GRH,Chrystal Consulting Limited,963399,"59,997.54", 
NHS,Glos Hospitals NHS Foundation Trust,18/04/2023,Contractual Clinical Services,Renal Dialysis,B Braun Avitum UK Limited,963431,"139,905.00", 
NHS,Glos Hospitals NHS Foundation Trust,18/04/2023,Contract : Other External,GHP Contract,Gloucester Healthcare Partnership Limited,963719,"27,774.06", 
NHS,Glos Hospitals NHS Foundation Trust,25/04/2023,Computer Software / License  Fees,Radiography,Philips UK and Ireland,963898,"287,830.50", 
NHS,Glos Hospitals NHS Foundation Trust,18/04/2023,Computer Maintenance,Financial and Procurement Systems Management,Infor (United Kingdom) Limited,963902,"80,402.75", 
NHS,Glos Hospitals NHS Foundation Trust,21/04/2023,Computer Maintenance,Computing - CGH HQ,Daisy Communications Limited,963904,"41,610.25", 
NHS,Glos Hospitals NHS Foundation Trust,18/04/2023,Implant Procedures,Cardiology Laboratory,Medtronic Limited,964039,"43,680.00", 
NHS,Glos Hospitals NHS Foundation Trust,18/04/2023,Medical & Surgical Equipment : General,Cardiac Investigations (ECG/Cardiology),iRhythm Technologies Limited,964040,"26,618.00", 
NHS,Glos Hospitals NHS Foundation Trust,25/04/2023,External Contracts : Other,Radiography,Cobalt Health,964189,"67,200.00", 
NHS,Glos Hospitals NHS Foundation Trust,25/04/2023,External Contracts : Other,Radiography,Cobalt Health,964190,"37,072.00", 
NHS,Glos Hospitals NHS Foundation Trust,25/04/2023,NHS Logistics control,Payables - Manual,Supply Chain Coordination Ltd - Consumables,964217,"63,135.23", 
NHS,Glos Hospitals NHS Foundation Trust,25/04/2023,Contractual Clinical Services,Cardiology Laboratory,AGITO Medical A/S,964266,"27,800.00", 
NHS,Glos Hospitals NHS Foundation Trust,25/04/2023,External Contracts : Other,Radiography Consultants,Hexarad Group Limited,964513,"31,535.50", 
NHS,Glos Hospitals NHS Foundation Trust,25/04/2023,External Contracts : Other,Radiology CDC,Cobalt Health,964514,"34,755.00", 
NHS,Glos Hospitals NHS Foundation Trust,25/04/2023,External Contracts : Other,Radiography,Cobalt Health,964515,"74,400.00", 
NHS,Glos Hospitals NHS Foundation Trust,25/04/2023,External Contracts : Other,Radiography Consultants,Everlight Radiology,964609,"116,764.00", 
NHS,Glos Hospitals NHS Foundation Trust,25/04/2023,External Contracts : Other,Radiography Consultants,Everlight Radiology,964610,"30,031.00", 
NHS,Glos Hospitals NHS Foundation Trust,21/04/2023,Computer Maintenance,Computing - CGH HQ,Daisy Communications Limited,964702,"-41,610.25", 
NHS,Glos Hospitals NHS Foundation Trust,25/04/2023,Sal Sacrifice Car Scheme,Pay Deductions,Tusker Direct,964853,"78,542.52", 
NHS,Glos Hospitals NHS Foundation Trust,25/04/2023,External Consultancy Fees,Corporate Governance,GGI Deveolpment and Research LLP,965051,"59,385.00", 
NHS,Glos Hospitals NHS Foundation Trust,25/04/2023,NHS Logistics control,Payables - Manual,Supply Chain Coordination Ltd - Consumables,965054,"49,778.22", 
NHS,Glos Hospitals NHS Foundation Trust,25/04/2023,Building & Engineering Equipment Maintenance,Car Parking Glos Hospitals,Saba Infra Gloucestershire Limited,965060,"25,656.84", 
NHS,Glos Hospitals NHS Foundation Trust,25/04/2023,Lease Rents,Houses&Residences-CGH,Sovereign Housing Association Limited,965061,"40,772.25", 
NHS,Glos Hospitals NHS Foundation Trust,25/04/2023,Prescribing Control,Payables - Manual,HA79125 NHSBSA,965173,"135,243.42", 
NHS,Glos Hospitals NHS Foundation Trust,28/04/2023,Contract : Other External,GHP Contract,Gloucester Healthcare Partnership Limited,965391,"-27,774.06", 
NHS,Glos Hospitals NHS Foundation Trust,28/04/2023,Contract : Other External,GHP Contract,Gloucester Healthcare Partnership Limited,965392,"27,774.06", 
NHS,Glos Hospitals NHS Foundation Trust,28/04/2023,Deduction Salary Finance,Pay Deductions,Salary Finance Limited - BORROW,965436,"25,490.63", 
NHS,Glos Hospitals NHS Foundation Trust,28/04/2023,Clinical Negligence,Trustwide Finance,NHS Resolution,965445,"2,058,955.10", 
NHS,Glos Hospitals NHS Foundation Trust,28/04/2023,Amounts owed to Joint Ventures and Associates,GMS Creditors,NHS Gloucestershire Managed Services,965795,"3,061,920.59", 
